[Event "Titled Tuesday Blitz November 08 Late 2022"]
[White "Svane, Rasmus"]
[Black "Zakhartsov, Vladimir"]
[WhiteFideId "4657101"]
[BlackFideId "4145097"]
[WhiteElo "2674"]
[BlackElo "2525"]
[Result "1-0"]
[Round "04"]
[TimeControl "180+1"]
[Date "2022.11.08"]
[WhiteClock "0:00:18"]
[BlackClock "0:00:02"]

1. Nf3 {[%clk 0:03:00]}  g6 {[%clk 0:02:57]} 2. e4 {[%clk 0:03:00]}  Bg7 {[%clk 0:02:56]} 3. d4 {[%clk 0:03:00]}  d6 {[%clk 0:02:56]} 4. Bd3 {[%clk 0:02:59]}  Nf6 {[%clk 0:02:47]} 5. c3 {[%clk 0:02:59]}  Nc6 {[%clk 0:02:47]} 6. O-O {[%clk 0:02:57]}  e5 {[%clk 0:02:46]} 7. h3 {[%clk 0:02:54]}  O-O {[%clk 0:02:46]} 8. Re1 {[%clk 0:02:54]}  Re8 {[%clk 0:02:40]} 9. Bc2 {[%clk 0:02:51]}  exd4 {[%clk 0:02:26]} 10. cxd4 {[%clk 0:02:51]}  Nb4 {[%clk 0:02:27]} 11. Nc3 {[%clk 0:02:40]}  Nxc2 {[%clk 0:02:26]} 12. Qxc2 {[%clk 0:02:41]}  h6 {[%clk 0:02:19]} 13. Bd2 {[%clk 0:02:30]}  c6 {[%clk 0:02:17]} 14. Rad1 {[%clk 0:02:28]}  Qb6 {[%clk 0:02:13]} 15. e5 {[%clk 0:02:23]}  Bf5 {[%clk 0:02:09]} 16. Qc1 {[%clk 0:02:23]}  dxe5 {[%clk 0:02:03]} 17. dxe5 {[%clk 0:02:24]}  Nd7 {[%clk 0:02:01]} 18. g4 {[%clk 0:01:53]}  Be6 {[%clk 0:01:39]} 19. Bxh6 {[%clk 0:01:51]}  Bh8 {[%clk 0:01:39]} 20. Bg5 {[%clk 0:01:43]}  Qc5 {[%clk 0:01:30]} 21. Qf4 {[%clk 0:01:40]}  Qa5 {[%clk 0:01:05]} 22. Ne4 {[%clk 0:01:29]}  Bd5 {[%clk 0:00:50]} 23. Nf6+ {[%clk 0:01:15]}  Nxf6 {[%clk 0:00:49]} 24. Bxf6 {[%clk 0:01:16]}  Bxf6 {[%clk 0:00:31]} 25. exf6 {[%clk 0:01:17]}  Bxf3 {[%clk 0:00:31]} 26. b4 {[%clk 0:00:42]}  Rxe1+ {[%clk 0:00:14]} 27. Rxe1 {[%clk 0:00:43]}  Qd8 {[%clk 0:00:15]} 28. Qxf3 {[%clk 0:00:37]}  Qd4 {[%clk 0:00:12]} 29. Re7 {[%clk 0:00:34]}  Qxb4 {[%clk 0:00:08]} 30. Qe3 {[%clk 0:00:24]}  Qb2 {[%clk 0:00:08]} 31. Re8+ {[%clk 0:00:22]}  Rxe8 {[%clk 0:00:08]} 32. Qxe8+ {[%clk 0:00:22]}  Kh7 {[%clk 0:00:09]} 33. Qxf7+ {[%clk 0:00:23]}  Kh6 {[%clk 0:00:09]} 34. Qe7 {[%clk 0:00:18]}  Qc1+ {[%clk 0:00:02]} 35. Kg2 {[%clk 0:00:18]}  Qc4 {[%clk 0:00:02]} 36. f7 {[%clk 0:00:18]}  Qd5+ {[%clk 0:00:02]} 37. Kh2 {[%clk 0:00:18]} 1-0


[Site "https://www.chess.com"]

[Event "Titled Tuesday Blitz November 08 Late 2022"]
[White "Taboas Rodriguez, Daniel"]
[Black "Kamsky, Gata"]
[WhiteFideId "2208466"]
[BlackFideId "2000024"]
[WhiteElo "2329"]
[BlackElo "2666"]
[Result "0-1"]
[Round "04"]
[TimeControl "180+1"]
[Date "2022.11.08"]
[WhiteClock "0:00:19"]
[BlackClock "0:00:30"]

1. d4 {[%clk 0:03:00]}  f5 {[%clk 0:02:58]} 2. Bg5 {[%clk 0:02:47]}  g6 {[%clk 0:02:54]} 3. Nd2 {[%clk 0:02:47]}  Bg7 {[%clk 0:02:54]} 4. e4 {[%clk 0:02:47]}  fxe4 {[%clk 0:02:51]} 5. Nxe4 {[%clk 0:02:48]}  d5 {[%clk 0:02:51]} 6. Nc5 {[%clk 0:02:47]}  b6 {[%clk 0:02:45]} 7. Nb3 {[%clk 0:02:47]}  Nh6 {[%clk 0:02:39]} 8. Nf3 {[%clk 0:02:39]}  Nf7 {[%clk 0:02:38]} 9. Bh4 {[%clk 0:02:39]}  O-O {[%clk 0:02:32]} 10. Be2 {[%clk 0:02:34]}  c5 {[%clk 0:02:31]} 11. O-O {[%clk 0:02:33]}  c4 {[%clk 0:02:15]} 12. Nbd2 {[%clk 0:02:29]}  Nc6 {[%clk 0:02:15]} 13. c3 {[%clk 0:02:30]}  b5 {[%clk 0:02:15]} 14. a3 {[%clk 0:02:19]}  a5 {[%clk 0:02:14]} 15. Re1 {[%clk 0:02:19]}  Rb8 {[%clk 0:02:05]} 16. Bf1 {[%clk 0:02:04]}  Bf6 {[%clk 0:02:05]} 17. Bg3 {[%clk 0:01:50]}  Rb6 {[%clk 0:02:02]} 18. Ne5 {[%clk 0:01:47]}  Nfxe5 {[%clk 0:01:55]} 19. dxe5 {[%clk 0:01:47]}  Bg7 {[%clk 0:01:55]} 20. Nf3 {[%clk 0:01:44]}  Bg4 {[%clk 0:01:46]} 21. Be2 {[%clk 0:01:44]}  Bxf3 {[%clk 0:01:44]} 22. Bxf3 {[%clk 0:01:44]}  e6 {[%clk 0:01:44]} 23. Bg4 {[%clk 0:01:43]}  Qe7 {[%clk 0:01:41]} 24. f4 {[%clk 0:01:38]}  h5 {[%clk 0:01:39]} 25. Bf3 {[%clk 0:01:35]}  Qf7 {[%clk 0:01:05]} 26. Qc2 {[%clk 0:01:26]}  Rbb8 {[%clk 0:01:01]} 27. Rf1 {[%clk 0:01:10]}  Bh6 {[%clk 0:00:58]} 28. Rf2 {[%clk 0:01:00]}  Ne7 {[%clk 0:00:56]} 29. Raf1 {[%clk 0:00:56]}  Nf5 {[%clk 0:00:55]} 30. Qe2 {[%clk 0:00:48]}  h4 {[%clk 0:00:54]} 31. Bxh4 {[%clk 0:00:32]}  Nxh4 {[%clk 0:00:54]} 32. Bg4 {[%clk 0:00:33]}  Nf5 {[%clk 0:00:50]} 33. Bh3 {[%clk 0:00:31]}  b4 {[%clk 0:00:50]} 34. g4 {[%clk 0:00:31]}  Nh4 {[%clk 0:00:45]} 35. axb4 {[%clk 0:00:32]}  axb4 {[%clk 0:00:45]} 36. f5 {[%clk 0:00:32]}  Qa7 {[%clk 0:00:33]} 37. Kh1 {[%clk 0:00:28]}  Qe3 {[%clk 0:00:33]} 38. fxg6 {[%clk 0:00:19]}  Qxe2 {[%clk 0:00:32]} 39. Rxe2 {[%clk 0:00:19]}  Rxf1+ {[%clk 0:00:31]} 40. Bxf1 {[%clk 0:00:20]}  bxc3 {[%clk 0:00:32]} 41. bxc3 {[%clk 0:00:20]}  Rb1 {[%clk 0:00:32]} 42. Rf2 {[%clk 0:00:20]}  Be3 {[%clk 0:00:31]} 43. Rf7 {[%clk 0:00:20]}  Nxg6 {[%clk 0:00:30]} 44. Rf6 {[%clk 0:00:19]}  Nf4 {[%clk 0:00:30]} 0-1


[Site "https://www.chess.com"]

[Event "Titled Tuesday Blitz November 08 Late 2022"]
[White "Van Dael, Siem"]
[Black "Annaberdiyev, Babageldi"]
[WhiteFideId "1049771"]
[BlackFideId "14000385"]
[WhiteElo "2287"]
[BlackElo "2332"]
[Result "1/2-1/2"]
[Round "04"]
[TimeControl "180+1"]
[Date "2022.11.09"]
[WhiteClock "0:00:03"]
[BlackClock "0:00:33"]

1. e4 {[%clk 0:03:00]}  e6 {[%clk 0:02:59]} 2. d4 {[%clk 0:03:01]}  d5 {[%clk 0:02:59]} 3. Nc3 {[%clk 0:03:01]}  Nf6 {[%clk 0:02:59]} 4. Bg5 {[%clk 0:03:01]}  Be7 {[%clk 0:03:00]} 5. e5 {[%clk 0:02:48]}  Nfd7 {[%clk 0:03:00]} 6. Bxe7 {[%clk 0:02:46]}  Qxe7 {[%clk 0:03:01]} 7. Qg4 {[%clk 0:02:47]}  O-O {[%clk 0:02:59]} 8. Bd3 {[%clk 0:02:47]}  f5 {[%clk 0:02:59]} 9. exf6 {[%clk 0:02:47]}  Nxf6 {[%clk 0:02:59]} 10. Qh4 {[%clk 0:02:48]}  Nc6 {[%clk 0:02:52]} 11. Nf3 {[%clk 0:02:47]}  Bd7 {[%clk 0:02:50]} 12. O-O-O {[%clk 0:02:46]}  Rae8 {[%clk 0:02:22]} 13. Rhe1 {[%clk 0:02:40]}  Nb4 {[%clk 0:02:21]} 14. Ne5 {[%clk 0:02:33]}  Nxd3+ {[%clk 0:02:21]} 15. Rxd3 {[%clk 0:02:34]}  c5 {[%clk 0:02:00]} 16. Nxd7 {[%clk 0:02:31]}  Qxd7 {[%clk 0:01:53]} 17. dxc5 {[%clk 0:02:31]}  e5 {[%clk 0:01:49]} 18. Qa4 {[%clk 0:02:29]}  Qxa4 {[%clk 0:01:37]} 19. Nxa4 {[%clk 0:02:30]}  d4 {[%clk 0:01:29]} 20. Rb3 {[%clk 0:02:06]}  Rf7 {[%clk 0:01:21]} 21. f3 {[%clk 0:02:00]}  Nd5 {[%clk 0:01:20]} 22. Kd2 {[%clk 0:01:57]}  Nf4 {[%clk 0:01:19]} 23. g3 {[%clk 0:01:55]}  Ng6 {[%clk 0:01:19]} 24. f4 {[%clk 0:01:54]}  e4 {[%clk 0:01:19]} 25. Rb4 {[%clk 0:01:53]}  Rd7 {[%clk 0:01:14]} 26. c6 {[%clk 0:01:32]}  bxc6 {[%clk 0:01:13]} 27. Nc5 {[%clk 0:01:33]}  e3+ {[%clk 0:01:10]} 28. Kd3 {[%clk 0:01:31]}  Rd5 {[%clk 0:01:10]} 29. Rc4 {[%clk 0:01:23]}  Red8 {[%clk 0:00:54]} 30. b4 {[%clk 0:01:23]}  Ne7 {[%clk 0:00:52]} 31. g4 {[%clk 0:01:09]}  Ng6 {[%clk 0:00:52]} 32. Rf1 {[%clk 0:00:54]}  Re8 {[%clk 0:00:47]} 33. Rxd4 {[%clk 0:00:49]}  Rxd4+ {[%clk 0:00:47]} 34. Kxd4 {[%clk 0:00:49]}  e2 {[%clk 0:00:48]} 35. Re1 {[%clk 0:00:49]}  Nxf4 {[%clk 0:00:49]} 36. Ne4 {[%clk 0:00:43]}  h6 {[%clk 0:00:38]} 37. Ng3 {[%clk 0:00:34]}  g5 {[%clk 0:00:34]} 38. c4 {[%clk 0:00:31]}  Kh7 {[%clk 0:00:32]} 39. b5 {[%clk 0:00:27]}  cxb5 {[%clk 0:00:33]} 40. cxb5 {[%clk 0:00:27]}  Kg6 {[%clk 0:00:30]} 41. a4 {[%clk 0:00:26]}  Rd8+ {[%clk 0:00:27]} 42. Kc4 {[%clk 0:00:17]}  Rd1 {[%clk 0:00:27]} 43. Rxe2 {[%clk 0:00:17]}  Nxe2 {[%clk 0:00:28]} 44. Nxe2 {[%clk 0:00:18]}  Rd2 {[%clk 0:00:27]} 45. Nd4 {[%clk 0:00:15]}  Rxh2 {[%clk 0:00:28]} 46. Nc6 {[%clk 0:00:16]}  Ra2 {[%clk 0:00:28]} 47. Kb3 {[%clk 0:00:16]}  Rg2 {[%clk 0:00:27]} 48. Nxa7 {[%clk 0:00:16]}  Rxg4 {[%clk 0:00:27]} 49. b6 {[%clk 0:00:16]}  Rf4 {[%clk 0:00:28]} 50. b7 {[%clk 0:00:15]}  Rf8 {[%clk 0:00:28]} 51. Nc6 {[%clk 0:00:15]}  g4 {[%clk 0:00:29]} 52. a5 {[%clk 0:00:16]}  g3 {[%clk 0:00:29]} 53. a6 {[%clk 0:00:15]}  g2 {[%clk 0:00:28]} 54. a7 {[%clk 0:00:05]}  g1=Q {[%clk 0:00:28]} 55. b8=Q {[%clk 0:00:05]}  Rxb8+ {[%clk 0:00:26]} 56. axb8=Q {[%clk 0:00:04]}  Qb1+ {[%clk 0:00:26]} 57. Kc4 {[%clk 0:00:04]}  Qxb8 {[%clk 0:00:27]} 58. Nxb8 {[%clk 0:00:05]}  h5 {[%clk 0:00:28]} 59. Nc6 {[%clk 0:00:05]}  h4 {[%clk 0:00:29]} 60. Ne5+ {[%clk 0:00:05]}  Kf5 {[%clk 0:00:30]} 61. Nf3 {[%clk 0:00:05]}  h3 {[%clk 0:00:30]} 62. Nh2 {[%clk 0:00:04]}  Kf4 {[%clk 0:00:31]} 63. Kd3 {[%clk 0:00:04]}  Kg3 {[%clk 0:00:32]} 64. Nf1+ {[%clk 0:00:04]}  Kg2 {[%clk 0:00:33]} 65. Ke2 {[%clk 0:00:03]}  h2 {[%clk 0:00:33]} 66. Nxh2 {[%clk 0:00:03]} 1/2-1/2


[Site "https://www.chess.com"]

[Event "Titled Tuesday Blitz November 08 Late 2022"]
[White "Viana Da Costa, Fernando"]
[Black "Machidon, Cristi"]
[WhiteFideId "2111900"]
[BlackFideId "13904590"]
[WhiteElo "2259"]
[BlackElo "2333"]
[Result "1-0"]
[Round "04"]
[TimeControl "180+1"]
[Date "2022.11.09"]
[WhiteClock "0:00:15"]
[BlackClock "0:00:42"]

1. e4 {[%clk 0:03:00]}  g6 {[%clk 0:02:57]} 2. d4 {[%clk 0:03:00]}  Bg7 {[%clk 0:02:57]} 3. Nc3 {[%clk 0:03:00]}  a6 {[%clk 0:02:57]} 4. a4 {[%clk 0:02:57]}  b6 {[%clk 0:02:57]} 5. Nf3 {[%clk 0:02:53]}  Bb7 {[%clk 0:02:57]} 6. Bc4 {[%clk 0:02:53]}  e6 {[%clk 0:02:57]} 7. O-O {[%clk 0:02:53]}  Ne7 {[%clk 0:02:52]} 8. Re1 {[%clk 0:02:51]}  d6 {[%clk 0:02:52]} 9. Bf4 {[%clk 0:02:48]}  Nd7 {[%clk 0:02:51]} 10. Qd2 {[%clk 0:02:47]}  h6 {[%clk 0:02:50]} 11. Rad1 {[%clk 0:02:46]}  g5 {[%clk 0:02:42]} 12. Bg3 {[%clk 0:02:45]}  Ng6 {[%clk 0:02:42]} 13. h3 {[%clk 0:02:43]}  Qe7 {[%clk 0:02:39]} 14. d5 {[%clk 0:02:37]}  Nde5 {[%clk 0:02:34]} 15. Nxe5 {[%clk 0:02:33]}  Nxe5 {[%clk 0:02:30]} 16. Be2 {[%clk 0:02:30]}  Ng6 {[%clk 0:02:16]} 17. Bh5 {[%clk 0:02:20]}  O-O-O {[%clk 0:01:58]} 18. dxe6 {[%clk 0:02:08]}  Ne5 {[%clk 0:01:57]} 19. exf7 {[%clk 0:02:05]}  Rhf8 {[%clk 0:01:47]} 20. Nd5 {[%clk 0:02:03]}  Qe6 {[%clk 0:01:44]} 21. Qc3 {[%clk 0:01:53]}  Bxd5 {[%clk 0:01:34]} 22. exd5 {[%clk 0:01:52]}  Qf5 {[%clk 0:01:17]} 23. Bxe5 {[%clk 0:01:09]}  Bxe5 {[%clk 0:01:18]} 24. Bg4 {[%clk 0:01:04]}  Qxg4 {[%clk 0:01:16]} 25. Qxe5 {[%clk 0:00:54]}  Qxg2+ {[%clk 0:01:05]} 26. Kxg2 {[%clk 0:00:55]}  dxe5 {[%clk 0:01:06]} 27. Rxe5 {[%clk 0:00:55]}  Rxf7 {[%clk 0:01:07]} 28. Re6 {[%clk 0:00:53]}  Rfd7 {[%clk 0:01:04]} 29. c4 {[%clk 0:00:45]}  b5 {[%clk 0:01:01]} 30. axb5 {[%clk 0:00:44]}  axb5 {[%clk 0:01:02]} 31. b3 {[%clk 0:00:41]}  Rd6 {[%clk 0:00:54]} 32. Rde1 {[%clk 0:00:39]}  Kb7 {[%clk 0:00:53]} 33. Rxd6 {[%clk 0:00:33]}  Rxd6 {[%clk 0:00:54]} 34. Re6 {[%clk 0:00:32]}  bxc4 {[%clk 0:00:44]} 35. bxc4 {[%clk 0:00:16]}  Rxe6 {[%clk 0:00:41]} 36. dxe6 {[%clk 0:00:17]}  Kc6 {[%clk 0:00:42]} 37. c5 {[%clk 0:00:15]} 1-0


[Site "https://www.chess.com"]

[Event "Titled Tuesday Blitz November 08 Late 2022"]
[White "Zhigalko, Sergei"]
[Black "Deac, Bogdan-Daniel"]
[WhiteFideId "13502956"]
[BlackFideId "1226380"]
[WhiteElo "2662"]
[BlackElo "2648"]
[Result "0-1"]
[Round "04"]
[TimeControl "180+1"]
[Date "2022.11.08"]
[WhiteClock "0:00:01"]
[BlackClock "0:00:05"]

1. e4 {[%clk 0:03:00]}  e5 {[%clk 0:03:00]} 2. Nf3 {[%clk 0:03:01]}  Nc6 {[%clk 0:03:00]} 3. Bc4 {[%clk 0:03:01]}  Nf6 {[%clk 0:03:00]} 4. d3 {[%clk 0:03:01]}  Bc5 {[%clk 0:03:00]} 5. O-O {[%clk 0:03:01]}  d6 {[%clk 0:03:00]} 6. Nbd2 {[%clk 0:03:01]}  O-O {[%clk 0:02:58]} 7. c3 {[%clk 0:03:02]}  a5 {[%clk 0:02:58]} 8. h3 {[%clk 0:02:58]}  h6 {[%clk 0:02:58]} 9. Re1 {[%clk 0:02:58]}  Be6 {[%clk 0:02:58]} 10. Bb5 {[%clk 0:02:55]}  Nd7 {[%clk 0:02:52]} 11. Nf1 {[%clk 0:02:53]}  d5 {[%clk 0:02:52]} 12. Ng3 {[%clk 0:02:50]}  Re8 {[%clk 0:02:41]} 13. Bxc6 {[%clk 0:02:32]}  bxc6 {[%clk 0:02:39]} 14. exd5 {[%clk 0:02:33]}  Bxd5 {[%clk 0:02:22]} 15. c4 {[%clk 0:02:24]}  Be6 {[%clk 0:02:18]} 16. Be3 {[%clk 0:02:16]}  Bf8 {[%clk 0:02:04]} 17. Qc2 {[%clk 0:01:56]}  c5 {[%clk 0:01:58]} 18. Rad1 {[%clk 0:01:46]}  f6 {[%clk 0:01:52]} 19. Ne4 {[%clk 0:01:46]}  f5 {[%clk 0:01:45]} 20. Nc3 {[%clk 0:01:45]}  Bd6 {[%clk 0:01:41]} 21. Nb5 {[%clk 0:01:33]}  Qf6 {[%clk 0:01:37]} 22. Bd2 {[%clk 0:01:31]}  Bf7 {[%clk 0:01:32]} 23. Bc3 {[%clk 0:01:29]}  Bh5 {[%clk 0:01:32]} 24. Re3 {[%clk 0:01:26]}  Qg6 {[%clk 0:00:49]} 25. Kh1 {[%clk 0:01:06]}  f4 {[%clk 0:00:13]} 26. Ree1 {[%clk 0:01:07]}  Bxf3 {[%clk 0:00:12]} 27. gxf3 {[%clk 0:01:08]}  Qh5 {[%clk 0:00:13]} 28. Kg2 {[%clk 0:00:55]}  Re6 {[%clk 0:00:13]} 29. Qe2 {[%clk 0:00:55]}  Nf8 {[%clk 0:00:09]} 30. Rg1 {[%clk 0:00:43]}  Rae8 {[%clk 0:00:05]} 31. Kh2 {[%clk 0:00:43]}  a4 {[%clk 0:00:05]} 32. Rg4 {[%clk 0:00:41]}  Nh7 {[%clk 0:00:05]} 33. Rdg1 {[%clk 0:00:37]}  R8e7 {[%clk 0:00:06]} 34. Bd2 {[%clk 0:00:11]}  Nf6 {[%clk 0:00:05]} 35. Nc3 {[%clk 0:00:04]}  Nxg4+ {[%clk 0:00:04]} 36. fxg4 {[%clk 0:00:05]}  f3 {[%clk 0:00:04]} 37. Qe4 {[%clk 0:00:02]}  Qf7 {[%clk 0:00:04]} 38. Rg3 {[%clk 0:00:01]}  Re8 {[%clk 0:00:03]} 39. Rxf3 {[%clk 0:00:01]}  Rf6 {[%clk 0:00:03]} 40. Rxf6 {[%clk 0:00:01]}  Qxf6 {[%clk 0:00:04]} 41. Kg2 {[%clk 0:00:02]}  Rf8 {[%clk 0:00:04]} 42. Be3 {[%clk 0:00:02]}  a3 {[%clk 0:00:05]} 43. b3 {[%clk 0:00:02]}  Qf7 {[%clk 0:00:05]} 44. Nb5 {[%clk 0:00:03]}  Qd7 {[%clk 0:00:05]} 45. Nxa3 {[%clk 0:00:03]}  c6 {[%clk 0:00:05]} 46. Nb1 {[%clk 0:00:02]}  Ra8 {[%clk 0:00:05]} 47. Nc3 {[%clk 0:00:02]}  Qb7 {[%clk 0:00:05]} 48. Na4 {[%clk 0:00:02]}  Qd7 {[%clk 0:00:05]} 49. Bxc5 {[%clk 0:00:01]}  Bxc5 {[%clk 0:00:04]} 50. Nxc5 {[%clk 0:00:02]}  Qd6 {[%clk 0:00:04]} 51. Na4 {[%clk 0:00:01]}  Rf8 {[%clk 0:00:05]} 52. Nc3 {[%clk 0:00:01]}  Rf4 {[%clk 0:00:05]} 53. Qe3 {[%clk 0:00:01]}  Rd4 {[%clk 0:00:05]} 54. Ne4 {[%clk 0:00:01]}  Qa3 {[%clk 0:00:05]} 0-1


[Site "https://www.chess.com"]

[Event "Titled Tuesday Blitz November 08 Late 2022"]
[White "chess50years"]
[Black "Gasparyan, David"]
[BlackFideId "13311980"]
[WhiteElo "2085"]
[BlackElo "2312"]
[Result "1-0"]
[Round "04"]
[TimeControl "180+1"]
[Date "2022.11.09"]
[WhiteClock "0:00:55"]
[BlackClock "0:00:05"]

1. d4 {[%clk 0:03:00]}  Nf6 {[%clk 0:02:57]} 2. c4 {[%clk 0:03:00]}  c6 {[%clk 0:02:56]} 3. Nc3 {[%clk 0:03:00]}  d5 {[%clk 0:02:56]} 4. e3 {[%clk 0:03:00]}  g6 {[%clk 0:02:54]} 5. Nf3 {[%clk 0:03:00]}  Bg7 {[%clk 0:02:53]} 6. Bd3 {[%clk 0:02:59]}  O-O {[%clk 0:02:54]} 7. O-O {[%clk 0:02:58]}  dxc4 {[%clk 0:02:52]} 8. Bxc4 {[%clk 0:02:58]}  Nbd7 {[%clk 0:02:53]} 9. Qe2 {[%clk 0:02:55]}  Nb6 {[%clk 0:02:52]} 10. Bb3 {[%clk 0:02:54]}  a5 {[%clk 0:02:50]} 11. a3 {[%clk 0:02:49]}  Nbd5 {[%clk 0:02:41]} 12. Rd1 {[%clk 0:02:47]}  b6 {[%clk 0:02:37]} 13. e4 {[%clk 0:02:43]}  Nxc3 {[%clk 0:02:36]} 14. bxc3 {[%clk 0:02:42]}  Ba6 {[%clk 0:02:35]} 15. Bc4 {[%clk 0:02:42]}  b5 {[%clk 0:02:34]} 16. Bd3 {[%clk 0:02:41]}  Qc7 {[%clk 0:02:26]} 17. a4 {[%clk 0:02:39]}  Rab8 {[%clk 0:02:19]} 18. Bg5 {[%clk 0:02:32]}  Rfd8 {[%clk 0:02:07]} 19. h3 {[%clk 0:02:30]}  h6 {[%clk 0:01:40]} 20. Be3 {[%clk 0:02:27]}  Nh5 {[%clk 0:01:30]} 21. Rdb1 {[%clk 0:02:16]}  Rbc8 {[%clk 0:01:00]} 22. e5 {[%clk 0:02:09]}  Bf8 {[%clk 0:00:20]} 23. Nd2 {[%clk 0:02:00]}  Kh7 {[%clk 0:00:17]} 24. Ne4 {[%clk 0:01:59]}  Ng7 {[%clk 0:00:18]} 25. Nc5 {[%clk 0:01:57]}  Ra8 {[%clk 0:00:14]} 26. axb5 {[%clk 0:01:56]}  Bxb5 {[%clk 0:00:14]} 27. Bxb5 {[%clk 0:01:55]}  cxb5 {[%clk 0:00:15]} 28. Qxb5 {[%clk 0:01:55]}  Nf5 {[%clk 0:00:13]} 29. Qb7 {[%clk 0:01:45]}  Qxb7 {[%clk 0:00:12]} 30. Nxb7 {[%clk 0:01:45]}  Rdb8 {[%clk 0:00:12]} 31. Nc5 {[%clk 0:01:45]}  Rxb1+ {[%clk 0:00:11]} 32. Rxb1 {[%clk 0:01:44]}  Nxe3 {[%clk 0:00:12]} 33. fxe3 {[%clk 0:01:43]}  e6 {[%clk 0:00:13]} 34. Nd7 {[%clk 0:01:39]}  Be7 {[%clk 0:00:12]} 35. Ra1 {[%clk 0:01:39]}  a4 {[%clk 0:00:12]} 36. Nb6 {[%clk 0:01:39]}  Ra6 {[%clk 0:00:11]} 37. Nxa4 {[%clk 0:01:35]}  Bh4 {[%clk 0:00:09]} 38. Ra2 {[%clk 0:01:34]}  Be1 {[%clk 0:00:08]} 39. c4 {[%clk 0:01:32]}  Bb4 {[%clk 0:00:07]} 40. Nc3 {[%clk 0:01:31]}  Rxa2 {[%clk 0:00:05]} 41. Nxa2 {[%clk 0:01:31]}  Bd2 {[%clk 0:00:06]} 42. Kf2 {[%clk 0:01:29]}  Ba5 {[%clk 0:00:07]} 43. Ke2 {[%clk 0:01:29]}  Kg7 {[%clk 0:00:06]} 44. g4 {[%clk 0:01:28]}  f6 {[%clk 0:00:06]} 45. exf6+ {[%clk 0:01:27]}  Kxf6 {[%clk 0:00:07]} 46. e4 {[%clk 0:01:26]}  Kg5 {[%clk 0:00:06]} 47. Kf3 {[%clk 0:01:25]}  Kh4 {[%clk 0:00:06]} 48. Kg2 {[%clk 0:01:25]}  Kg5 {[%clk 0:00:06]} 49. Kf3 {[%clk 0:01:21]}  Bd2 {[%clk 0:00:06]} 50. e5 {[%clk 0:01:19]}  h5 {[%clk 0:00:04]} 51. gxh5 {[%clk 0:01:19]}  gxh5 {[%clk 0:00:05]} 52. c5 {[%clk 0:01:17]}  Kg6 {[%clk 0:00:05]} 53. Ke4 {[%clk 0:01:15]}  Kf7 {[%clk 0:00:05]} 54. d5 {[%clk 0:01:15]}  exd5+ {[%clk 0:00:05]} 55. Kxd5 {[%clk 0:01:15]}  Ke7 {[%clk 0:00:06]} 56. e6 {[%clk 0:01:15]}  h4 {[%clk 0:00:05]} 57. c6 {[%clk 0:01:14]}  Ba5 {[%clk 0:00:05]} 58. Nc1 {[%clk 0:01:13]}  Bc7 {[%clk 0:00:05]} 59. Nd3 {[%clk 0:01:12]}  Bg3 {[%clk 0:00:06]} 60. Ne5 {[%clk 0:01:12]}  Kd8 {[%clk 0:00:05]} 61. Ng6 {[%clk 0:01:11]}  Ke8 {[%clk 0:00:03]} 62. Ne5 {[%clk 0:01:08]}  Kd8 {[%clk 0:00:02]} 63. Nf7+ {[%clk 0:01:03]}  Ke7 {[%clk 0:00:01]} 64. Nh6 {[%clk 0:01:02]}  Kd8 {[%clk 0:00:02]} 65. Nf5 {[%clk 0:01:02]}  Bh2 {[%clk 0:00:03]} 66. Nxh4 {[%clk 0:01:01]}  Ke7 {[%clk 0:00:04]} 67. Nf5+ {[%clk 0:01:01]}  Kd8 {[%clk 0:00:05]} 68. Nd6 {[%clk 0:01:01]}  Bf4 {[%clk 0:00:06]} 69. Nb5 {[%clk 0:00:58]}  Bg3 {[%clk 0:00:06]} 70. c7+ {[%clk 0:00:57]}  Bxc7 {[%clk 0:00:01]} 71. Nxc7 {[%clk 0:00:56]}  Kxc7 {[%clk 0:00:01]} 72. Ke5 {[%clk 0:00:56]}  Kd8 {[%clk 0:00:02]} 73. Kf6 {[%clk 0:00:57]}  Ke8 {[%clk 0:00:03]} 74. e7 {[%clk 0:00:57]}  Kd7 {[%clk 0:00:03]} 75. Kf7 {[%clk 0:00:57]}  Kd6 {[%clk 0:00:04]} 76. e8=Q {[%clk 0:00:57]}  Kd5 {[%clk 0:00:04]} 77. Qe3 {[%clk 0:00:57]}  Kc4 {[%clk 0:00:04]} 78. Ke6 {[%clk 0:00:57]}  Kb5 {[%clk 0:00:05]} 79. Qc3 {[%clk 0:00:56]}  Kb6 {[%clk 0:00:04]} 80. Kd7 {[%clk 0:00:55]}  Kb5 {[%clk 0:00:05]} 81. Kd6 {[%clk 0:00:55]}  Kb6 {[%clk 0:00:05]} 82. Qb2+ {[%clk 0:00:55]}  Ka5 {[%clk 0:00:04]} 83. Kc5 {[%clk 0:00:55]}  Ka6 {[%clk 0:00:05]} 84. Qb6# {[%clk 0:00:55]} 1-0


[Site "https://www.chess.com"]

[Event "Titled Tuesday Blitz November 08 Late 2022"]
[White "Aguilar, Juan"]
[Black "Adewumi, Tanitoluwa"]
[WhiteFideId "3800091"]
[BlackFideId "30966396"]
[WhiteElo "2424"]
[BlackElo "2548"]
[Result "0-1"]
[Round "05"]
[TimeControl "180+1"]
[Date "2022.11.09"]
[WhiteClock "0:00:03"]
[BlackClock "0:00:03"]

1. d4 {[%clk 0:03:00]}  Nf6 {[%clk 0:02:59]} 2. c4 {[%clk 0:03:00]}  e6 {[%clk 0:02:58]} 3. Nf3 {[%clk 0:02:59]}  b6 {[%clk 0:02:57]} 4. g3 {[%clk 0:02:56]}  Ba6 {[%clk 0:02:56]} 5. Qc2 {[%clk 0:02:55]}  Nc6 {[%clk 0:02:21]} 6. Bg2 {[%clk 0:02:51]}  Nb4 {[%clk 0:02:14]} 7. Qb3 {[%clk 0:02:46]}  Nc6 {[%clk 0:01:52]} 8. Nbd2 {[%clk 0:02:30]}  Na5 {[%clk 0:01:35]} 9. Qc2 {[%clk 0:02:26]}  Bb4 {[%clk 0:01:27]} 10. O-O {[%clk 0:02:16]}  O-O {[%clk 0:01:25]} 11. a3 {[%clk 0:02:14]}  Bxd2 {[%clk 0:01:15]} 12. Nxd2 {[%clk 0:02:13]}  d5 {[%clk 0:01:04]} 13. b3 {[%clk 0:01:48]}  Rc8 {[%clk 0:01:01]} 14. Bb2 {[%clk 0:01:41]}  Re8 {[%clk 0:00:48]} 15. e4 {[%clk 0:01:29]}  c5 {[%clk 0:00:28]} 16. exd5 {[%clk 0:01:21]}  cxd4 {[%clk 0:00:13]} 17. Bxd4 {[%clk 0:01:08]}  exd5 {[%clk 0:00:11]} 18. Bxf6 {[%clk 0:00:45]}  Qxf6 {[%clk 0:00:08]} 19. Bxd5 {[%clk 0:00:45]}  Re2 {[%clk 0:00:05]} 20. Qd3 {[%clk 0:00:39]}  Rxd2 {[%clk 0:00:03]} 21. Qxd2 {[%clk 0:00:37]}  Nxb3 {[%clk 0:00:03]} 22. Qa2 {[%clk 0:00:21]}  Nxa1 {[%clk 0:00:03]} 23. Qxa1 {[%clk 0:00:21]}  Qxa1 {[%clk 0:00:03]} 24. Rxa1 {[%clk 0:00:22]}  Bxc4 {[%clk 0:00:03]} 25. Rc1 {[%clk 0:00:16]}  b5 {[%clk 0:00:03]} 26. a4 {[%clk 0:00:13]}  a6 {[%clk 0:00:03]} 27. axb5 {[%clk 0:00:13]}  axb5 {[%clk 0:00:04]} 28. f4 {[%clk 0:00:10]}  g6 {[%clk 0:00:03]} 29. Kf2 {[%clk 0:00:09]}  Kg7 {[%clk 0:00:03]} 30. Bxc4 {[%clk 0:00:07]}  bxc4 {[%clk 0:00:03]} 31. Ke3 {[%clk 0:00:08]}  c3 {[%clk 0:00:04]} 32. Kd3 {[%clk 0:00:07]}  Kf6 {[%clk 0:00:04]} 33. Rxc3 {[%clk 0:00:07]}  Rxc3+ {[%clk 0:00:04]} 34. Kxc3 {[%clk 0:00:08]}  Kf5 {[%clk 0:00:05]} 35. Kd4 {[%clk 0:00:06]}  Kg4 {[%clk 0:00:05]} 36. Ke5 {[%clk 0:00:04]}  Kh3 {[%clk 0:00:03]} 37. Kf6 {[%clk 0:00:04]}  Kxh2 {[%clk 0:00:03]} 38. g4 {[%clk 0:00:03]}  Kg3 {[%clk 0:00:03]} 0-1


[Site "https://www.chess.com"]